[Event "Gibraltar Junior Intl U16 2019"]
[Site "Caleta"]
[Date "2019.08.17"]
[Round "3.1"]
[White "Garrido Outon, Alex"]
[Black "Serrano Almendros, Alejandro"]
[Result "1-0"]
[ECO "C14"]
[WhiteElo "2231"]
[BlackElo "1922"]
[Annotator "ChessBase"]
[PlyCount "82"]
[EventDate "2019.08.16"]
[EventType "swiss"]
[EventCountry "GGB"]
[SourceTitle "playchess.com"]
[Source "ChessBase"]
[SourceQuality "1"]
[TimeControl "6600+10"]

1. e4 {[%emt 0:00:00]} e6 {[%emt 0:00:00]} 2. d4 {[%emt 0:00:00]} d5 {[%emt 0:00:03]} 3. Nc3 {[%emt 0:00:00]} Nf6 {[%emt 0:00:49]} 4. Bg5 {[%emt 0:00:06]} Be7 {[%emt 0:00:39]} 5. e5 {[%emt 0:00:07]} Nfd7 {[%emt 0:00:10]} 6. Bxe7 {[%emt 0:00:10]} Qxe7 {[%emt 0:00:08]} 7. Qg4 {[%emt 0:00:05]} O-O {[%emt 0:01:11]} 8. Bd3 {[%emt 0:00:11]} c5 {[%emt 0:10:11]} 9. Nf3 {[%emt 0:00:34]} f6 {[%emt 0:05:48]} 10. exf6 {[%emt 0:00:58]} Qxf6 {[%emt 0:02:02]} 11. O-O-O {[%emt 0:15:16]} cxd4 {[%emt 0:05:21]} 12. Nb5 {[%emt 0:05:24]} Nc6 {[%emt 0:01:46]} 13. Nc7 {[%emt 0:23:06]} Nde5 {[%emt 0:02:36]} 14. Nxe5 {[%emt 0:02:24]} Nxe5 {[%emt 0:22:36]} 15. Bxh7+ {[%emt 0:10:41]} Kxh7 {[%emt 0:00:28]} 16. Qh5+ {[%emt 0:00:06]} Kg8 {[%emt 0:00:21]} 17. Nxa8 {[%emt 0:00:18]} Nc6 {[%emt 0:13:27]} 18. Rd3 {[%emt 0:11:17]} e5 {[%emt 0:15:24]} 19. Rf3 {[%emt 0:05:29]} Bf5 {[%emt 0:05:32]} 20. g4 {[%emt 0:01:54]} Bxg4 {[%emt 0:00:50]} 21. Rxf6 {[%emt 0:00:02]} Bxh5 {[%emt 0:00:17]} 22. Rxf8+ {[%emt 0:00:02]} Kxf8 {[%emt 0:00:03]} 23. Rg1 {[%emt 0:05:41]} Bf7 {[%emt 0:02:03]} 24. Nc7 {[%emt 0:01:42]} g6 {[%emt 0:03:50]} 25. f4 {[%emt 0:04:25]} e4 {[%emt 0:03:38]} 26. Rg5 {[%emt 0:01:21]} Ne7 {[%emt 0:02:41]} 27. Nb5 {[%emt 0:03:06]} Nf5 {[%emt 0:00:17]} 28. Nxa7 {[%emt 0:00:59]} Ke7 {[%emt 0:06:30]} 29. Nb5 {[%emt 0:09:32]} Be8 {[%emt 0:02:12]} 30. Nc7 {[%emt 0:01:04]} Bf7 {[%emt 0:00:00]} 31. b4 {[%emt 0:00:49]} Kf6 {[%emt 0:01:51]} 32. a4 {[%emt 0:00:41]} Ke7 {[%emt 0:01:17]} 33. a5 {[%emt 0:01:16]} Kd6 {[%emt 0:00:22]} 34. Nb5+ {[%emt 0:00:29]} Kc6 {[%emt 0:00:00]} 35. Rxf5 {[%emt 0:00:13]} gxf5 {[%emt 0:00:10]} 36. Nxd4+ {[%emt 0:00:01]} Kd7 {[%emt 0:00:36]} 37. Nxf5 {[%emt 0:01:23]} d4 {[%emt 0:00:00]} 38. Nxd4 {[%emt 0:00:50]} Kd6 {[%emt 0:00:02]} 39. Kd2 {[%emt 0:00:17]} Kd5 {[%emt 0:00:01]} 40. Ke3 {[%emt 0:00:34]} Kc4 {[%emt 0:00:30]} 41. b5 {[%emt 0:00:26]} Kd5 {Kxe4+} 1-0

[Event "Gibraltar Junior Intl U16 2019"]
[Site "Caleta"]
[Date "2019.08.17"]
[Round "3.2"]
[White "Llena Velarde, David"]
[Black "Cuellar Montes, Alejandro"]
[Result "1-0"]
[ECO "C41"]
[WhiteElo "1920"]
[BlackElo "2143"]
[Annotator "ChessBase"]
[PlyCount "119"]
[EventDate "2019.08.16"]
[EventType "swiss"]
[EventCountry "GGB"]
[SourceTitle "playchess.com"]
[Source "ChessBase"]
[SourceQuality "1"]
[TimeControl "6600+10"]

1. e4 {[%emt 0:00:00]} d6 {[%emt 0:00:00]} 2. d4 {[%emt 0:00:00]} Nf6 {[%emt 0:00:03]} 3. Nc3 {[%emt 0:00:09]} Nbd7 {[%emt 0:00:03]} 4. Nf3 {[%emt 0:00:38]} e5 {[%emt 0:00:04]} 5. Bc4 {[%emt 0:02:23]} Be7 {[%emt 0:00:05]} 6. O-O {[%emt 0:00:55]} O-O {[%emt 0:00:26]} 7. h3 {[%emt 0:00:16]} c6 {[%emt 0:00:09]} 8. a4 {[%emt 0:02:11]} a5 {[%emt 0:00:05]} 9. Be3 {[%emt 0:01:00]} exd4 {[%emt 0:04:57]} 10. Qxd4 {[%emt 0:04:13]} Nc5 {[%emt 0:02:23]} 11. e5 {[%emt 0:09:43]} dxe5 {[%emt 0:01:04]} 12. Qxd8 {[%emt 0:00:11]} Rxd8 {[%emt 0:00:06]} 13. Nxe5 {[%emt 0:00:08]} Be6 {[%emt 0:01:33]} 14. Bxe6 {[%emt 0:05:48]} fxe6 {[%emt 0:01:05]} 15. Rfd1 {[%emt 0:05:28]} Nd5 {[%emt 0:01:49]} 16. Bxc5 {[%emt 0:00:32]} Bxc5 {[%emt 0:00:38]} 17. Ne4 {[%emt 0:00:27]} Be7 {[%emt 0:00:48]} 18. c3 {[%emt 0:13:47]} Nf4 {[%emt 0:06:56]} 19. Nc4 {[%emt 0:14:04]} Nd3 {[%emt 0:08:00]} 20. Rd2 {[%emt 0:00:53]} Nc5 {[%emt 0:01:44]} 21. Nxc5 {[%emt 0:00:13]} Bxc5 {[%emt 0:00:43]} 22. Re1 {[%emt 0:03:33]} Rxd2 {[%emt 0:01:27]} 23. Nxd2 {[%emt 0:00:07]} Rf8 {[%emt 0:03:56]} 24. Ne4 {[%emt 0:01:35]} Be7 {[%emt 0:00:47]} 25. Rd1 {[%emt 0:00:53]} Rb8 {[%emt 0:03:51]} 26. Kf1 {[%emt 0:10:48]} Kf8 {[%emt 0:01:45]} 27. Ke2 {[%emt 0:00:31]} b5 {[%emt 0:00:36]} 28. axb5 {[%emt 0:00:19]} cxb5 {[%emt 0:00:22]} 29. Rd7 {[%emt 0:08:23]} b4 {[%emt 0:01:10]} 30. Ra7 {[%emt 0:00:35]} bxc3 {[%emt 0:00:28]} 31. bxc3 {[%emt 0:00:08]} Rb2+ {[%emt 0:00:31]} 32. Kd3 {[%emt 0:00:48]} Ra2 {[%emt 0:00:12]} 33. c4 {[%emt 0:04:01]} Ke8 {[%emt 0:05:45]} 34. c5 {[%emt 0:01:24]} Kd8 {[%emt 0:01:23]} 35. c6 {[%emt 0:04:23]} a4 {[%emt 0:02:44]} 36. c7+ {[%emt 0:02:11]} Kc8 {[%emt 0:00:06]} 37. Nc3 {[%emt 0:00:36]} Ra3 {[%emt 0:00:58]} 38. Kc4 {[%emt 0:00:22]} Rb3 {[%emt 0:15:24]} 39. Rxa4 {[%emt 0:00:37]} Ra3 {[%emt 0:00:44]} 40. Rxa3 {[%emt 0:00:33]} Bxa3 {[%emt 0:00:01]} 41. Nb5 {[%emt 0:00:13]} Be7 {[%emt 0:00:11]} 42. Kd4 {[%emt 0:00:15]} Kd7 {[%emt 0:00:07]} 43. f4 {[%emt 0:01:08]} Bh4 {[%emt 0:02:38]} 44. g4 {[%emt 0:00:57]} Bg3 {[%emt 0:03:12]} 45. Ke4 {[%emt 0:00:32]} g6 {[%emt 0:00:17]} 46. Nd4 {[%emt 0:00:18]} h5 {[%emt 0:09:17]} 47. Nxe6 {[%emt 0:01:20]} hxg4 {[%emt 0:00:49]} 48. hxg4 {[%emt 0:00:11]} Be1 {[%emt 0:02:23]} 49. Kd5 {[%emt 0:00:46]} Bd2 {[%emt 0:03:00]} 50. g5 {[%emt 0:00:42]} Bc1 {[%emt 0:01:51]} 51. Kc5 {[%emt 0:01:32]} Be3+ {[%emt 0:00:25]} 52. Kb5 {[%emt 0:00:42]} Kc8 {[%emt 0:01:12]} 53. Ka6 {[%emt 0:00:20]} Bd2 {[%emt 0:00:33]} 54. Kb5 {[%emt 0:00:32]} Be3 {[%emt 0:00:10]} 55. Kc4 {[%emt 0:00:03]} Bc1 {[%emt 0:00:59]} 56. Kd5 {[%emt 0:00:23]} Ba3 {[%emt 0:00:19]} 57. f5 {[%emt 0:01:20]} gxf5 {[%emt 0:00:30]} 58. g6 {[%emt 0:00:01]} Bb2 {[%emt 0:00:33]} 59. Nd4 {[%emt 0:00:02]} Bxd4 {[%emt 0:01:19]} 60. Kxd4 {[%emt 0:00:02]} 1-0

[Event "Gibraltar Junior Intl U16 2019"]
[Site "Caleta"]
[Date "2019.08.17"]
[Round "3.3"]
[White "Perez Beltran, Salvador"]
[Black "Howell, Oliver W"]
[Result "1/2-1/2"]
[ECO "C05"]
[WhiteElo "2103"]
[BlackElo "1847"]
[Annotator "ChessBase"]
[PlyCount "93"]
[EventDate "2019.08.16"]
[EventType "swiss"]
[EventCountry "GGB"]
[SourceTitle "playchess.com"]
[Source "ChessBase"]
[SourceQuality "1"]
[TimeControl "6600+10"]

1. e4 {[%emt 0:00:00]} e6 {[%emt 0:00:00]} 2. d4 {[%emt 0:00:00]} d5 {[%emt 0:00:00]} 3. Nd2 {[%emt 0:00:04]} Nf6 {[%emt 0:00:22]} 4. e5 {[%emt 0:00:06]} Nfd7 {[%emt 0:00:09]} 5. f4 {[%emt 0:00:13]} c5 {[%emt 0:00:34]} 6. c3 {[%emt 0:00:09]} Nc6 {[%emt 0:00:32]} 7. Ndf3 {[%emt 0:00:07]} cxd4 {[%emt 0:01:29]} 8. cxd4 {[%emt 0:00:12]} Bb4+ {[%emt 0:02:17]} 9. Kf2 {[%emt 0:16:31]} O-O {[%emt 0:08:03]} 10. Bd3 {[%emt 0:00:54]} f5 {[%emt 0:07:18]} 11. Ne2 {[%emt 0:04:13]} Nb6 {[%emt 0:07:40]} 12. a3 {[%emt 0:01:44]} Be7 {[%emt 0:00:18]} 13. h4 {[%emt 0:00:47]} h5 {[%emt 0:06:56]} 14. Ng5 {[%emt 0:00:46]} g6 {[%emt 0:03:54]} 15. g4 {[%emt 0:14:05]} Bxg5 {[%emt 0:03:18]} 16. hxg5 {[%emt 0:23:31]} hxg4 {[%emt 0:02:53]} 17. Rh6 {[%emt 0:07:30]} Kg7 {[%emt 0:01:27]} 18. Bd2 {[%emt 0:04:30]} Rh8 {[%emt 0:03:18]} 19. Qh1 {[%emt 0:00:25]} Bd7 {[%emt 0:01:29]} 20. Qh4 {[%emt 0:02:36]} Qg8 {[%emt 0:04:21]} 21. Rh1 {[%emt 0:07:12]} Rxh6 {[%emt 0:05:07]} 22. gxh6+ {[%emt 0:05:25]} Kh7 {[%emt 0:00:37]} 23. Bb5 {[%emt 0:01:00]} Qd8 {[%emt 0:02:26]} 24. Qg5 {[%emt 0:04:05]} Nxe5 {[%emt 0:33:04]} 25. fxe5 {[%emt 0:00:04]} Bxb5 {[%emt 0:00:33]} 26. Qxd8 {[%emt 0:00:18]} Rxd8 {[%emt 0:01:25]} 27. Bg5 {[%emt 0:00:04]} Rc8 {[%emt 0:01:00]} 28. Nf4 {[%emt 0:00:04]} Bd7 {[%emt 0:05:27]} 29. Bf6 {[%emt 0:00:11]} Rg8 {[%emt 0:01:17]} 30. Bg7 {[%emt 0:01:30]} Nc4 {[%emt 0:02:32]} 31. Ke2 {[%emt 0:02:47]} b6 {[%emt 0:01:58]} 32. Rc1 {[%emt 0:06:43]} Rc8 {[%emt 0:00:02]} 33. Nd3 {[%emt 0:01:25]} Na5 {[%emt 0:00:29]} 34. Rxc8 {[%emt 0:01:57]} Bxc8 {[%emt 0:00:00]} 35. Nf4 {[%emt 0:01:55]} Nc4 {[%emt 0:00:10]} 36. b3 {[%emt 0:01:03]} Nxa3 {[%emt 0:00:08]} 37. Kd2 {[%emt 0:00:02]} Nb5 {[%emt 0:00:03]} 38. Kd3 {[%emt 0:00:04]} Nc7 {[%emt 0:00:09]} 39. Ke3 {[%emt 0:00:31]} a5 {[%emt 0:00:16]} 40. Kf2 {[%emt 0:00:04]} b5 {[%emt 0:00:06]} 41. Kg3 {[%emt 0:00:04]} Bd7 {[%emt 0:00:16]} 42. Kh4 {[%emt 0:00:14]} Be8 {[%emt 0:00:32]} 43. Kg5 {[%emt 0:00:03]} a4 {[%emt 0:00:22]} 44. bxa4 {[%emt 0:00:02]} b4 {[%emt 0:00:25]} 45. Bf8 {[%emt 0:00:49]} b3 {[%emt 0:00:03]} 46. Ba3 {[%emt 0:00:12]} g3 {[%emt 0:01:07]} 47. a5 {[%emt 0:00:28]} 1/2-1/2

[Event "Gibraltar Junior Intl U16 2019"]
[Site "Caleta"]
[Date "2019.08.17"]
[Round "3.4"]
[White "Gutierrez Lupion, Daniel"]
[Black "Cesar Maestre, Bernardo"]
[Result "0-1"]
[ECO "B23"]
[WhiteElo "1811"]
[BlackElo "2084"]
[Annotator "NA"]
[PlyCount "54"]
[EventDate "2019.08.16"]
[EventType "swiss"]
[EventCountry "GGB"]
[SourceTitle "playchess.com"]
[Source "ChessBase"]
[SourceQuality "1"]
[TimeControl "6600+10"]

1. e4 {[%emt 0:00:00]} c5 {[%emt 0:00:00]} 2. Nc3 {[%emt 0:00:47]} Nc6 {[%emt 0:00:06]} 3. f4 {[%emt 0:00:09]} g6 {[%emt 0:00:07]} 4. Nf3 {[%emt 0:00:10]} Bg7 {[%emt 0:00:07]} 5. Bb5 {[%emt 0:00:10]} Nd4 {[%emt 0:00:07]} 6. O-O {[%emt 0:00:17]} a6 {[%emt 0:03:27]} 7. Bc4 {[%emt 0:00:56] B23: Closed Sicilian: Lines without g3} (7. Bd3 Nc6 8. e5 d6 9. Qe2 dxe5 10. fxe5 Nh6 11. Kh1 Bg4 12. Be4 Rc8 13. d3 Nf5 14. e6 f6 15. Qf2 {1-0 (37) Petrosian,T (2648)-Jaracz,P (2548) Warsaw 2012}) 7... e6 {[%emt 0:00:24]} 8. d3 {[%emt 0:00:46]} Ne7 {[%emt 0:00:52]} 9. Bb3 {[%emt 0:00:41]} d5 {[%emt 0:02:32]} 10. Nxd4 {[%emt 0:18:29]} cxd4 {[%emt 0:00:29]} 11. Ne2 {[%emt 0:00:22]} dxe4 {[%emt 0:00:18]} 12. dxe4 {[%emt 0:00:06]} O-O {[%emt 0:00:15]} 13. Ng3 {[%emt 0:00:58]} b5 {[%emt 0:02:17]} 14. Qg4 {[%emt 0:02:33]} Nc6 $146 {[%emt 0:09:33]} ({Predecessor:} 14... a5) 15. f5 {[%emt 0:04:05]} exf5 {[%emt 0:08:47]} 16. exf5 {[%emt 0:00:40]} Na5 {[%emt 0:04:22]} 17. Bg5 {[%emt 0:02:15]} Qd7 $1 {[%emt 0:00:42]} 18. Qh4 {[%emt 0:01:31]} Nxb3 {[%emt 0:00:23]} 19. f6 {[%emt 0:01:29]} Bh8 {[%emt 0:01:28]} 20. axb3 {[%emt 0:02:34]} Qd5 {[%emt 0:03:37]} 21. Rad1 {[%emt 0:07:26]} Bb7 {[%emt 0:02:12]} 22. Rd2 $16 {[%emt 0:01:13]} (22. Rf3 $18) 22... Rfe8 {[%emt 0:00:20]} 23. Qh6 {[%emt 0:07:52]} d3 {[%emt 0:04:02]} 24. h3 {[%emt 0:04:24]} Re2 {[%emt 0:03:39]} 25. Rf2 {[%emt 0:01:58]} Rxf2 {[%emt 0:02:10]} 26. Rxf2 {[%emt 0:00:08]} dxc2 {[%emt 0:00:19]} 27. Rxc2 {[%emt 0:00:30]} Qd1+ {[%emt 0:00:19]} 0-1

[Event "Gibraltar Junior Intl U16 2019"]
[Site "Caleta"]
[Date "2019.08.17"]
[Round "3.5"]
[White "Kracht, Raphael"]
[Black "Krivenko, Dion"]
[Result "1/2-1/2"]
[ECO "B22"]
[WhiteElo "2072"]
[BlackElo "1810"]
[Annotator "NA"]
[PlyCount "85"]
[EventDate "2019.08.16"]
[EventType "swiss"]
[EventCountry "GGB"]
[SourceTitle "playchess.com"]
[Source "ChessBase"]
[SourceQuality "1"]
[TimeControl "6600+10"]

1. e4 {[%emt 0:00:00]} c5 {[%emt 0:00:00]} 2. d4 {[%emt 0:00:46]} cxd4 {[%emt 0:00:06]} 3. c3 {[%emt 0:00:10]} Nf6 {[%emt 0:00:17]} 4. e5 {[%emt 0:00:01]} Nd5 {[%emt 0:00:18]} 5. Nf3 {[%emt 0:00:05]} Nc6 {[%emt 0:00:24]} 6. Bc4 {[%emt 0:00:04]} e6 {[%emt 0:00:53]} 7. cxd4 {[%emt 0:00:04]} d6 {[%emt 0:00:22]} 8. O-O {[%emt 0:08:13]} Be7 {[%emt 0:01:15]} 9. a3 {[%emt 0:01:06]} O-O {[%emt 0:00:26]} 10. Qe2 {[%emt 0:00:53]} Bd7 {[%emt 0:02:13]} 11. Re1 {[%emt 0:02:48]} Rc8 {[%emt 0:01:23]} 12. b4 {[%emt 0:07:09]} Qb6 {[%emt 0:07:04]} 13. Bb2 {[%emt 0:02:24]} Nf4 {[%emt 0:04:28]} 14. Qd2 {[%emt 0:04:31]} Nxe5 {[%emt 0:11:18]} 15. dxe5 {[%emt 0:06:24]} Rxc4 {[%emt 0:00:46]} 16. Bd4 {[%emt 0:00:30]} (16. exd6 $1 $15 Bxd6 17. Nc3) 16... Rxd4 {[%emt 0:03:43]} 17. Nxd4 {[%emt 0:06:41] [#]} dxe5 $2 {[%emt 0:03:52]} (17... Bg5 $1 $19 18. Qd1 {[#]} Ba4 $1 {[%mdl 512]}) 18. Nf3 {[%emt 0:06:19]} Bc6 $17 {[%emt 0:09:55]} 19. Qe3 {[%emt 0:05:43]} Qxe3 {[%emt 0:05:17]} 20. fxe3 {[%emt 0:03:12]} Nh3+ {[%emt 0:05:01]} 21. gxh3 {[%emt 0:02:00]} Bxf3 {[%emt 0:00:15]} 22. Nd2 {[%emt 0:00:58]} Bc6 {[%emt 0:02:21]} 23. Nc4 {[%emt 0:07:13]} e4 {[%emt 0:13:48]} 24. Rac1 {[%emt 0:07:11]} f5 {[%emt 0:05:27]} 25. Red1 {[%emt 0:26:56]} Bg5 {[%emt 0:09:58]} 26. Re1 {[%emt 0:09:53]} Bf6 {[%emt 0:06:54]} 27. Na5 {[%emt 0:02:53]} Bd5 {[%emt 0:02:20]} 28. Re2 {[%emt 0:00:01]} Bd8 {[%emt 0:02:52]} 29. Rc8 {[%emt 0:00:22]} Bxa5 {[%emt 0:01:48]} 30. Rxf8+ {[%emt 0:00:02]} Kxf8 {[%emt 0:00:09]} 31. bxa5 {[%emt 0:00:01]} a6 {[%emt 0:00:21]} 32. Rc2 {[%emt 0:00:04]} Bc6 {[%emt 0:00:46]} 33. Kf2 {[%emt 0:00:09]} g5 {[%emt 0:00:48]} 34. h4 {[%emt 0:00:13]} h6 {[%emt 0:00:51]} 35. hxg5 {[%emt 0:00:01]} hxg5 {[%emt 0:00:01]} 36. Kg3 {[%emt 0:00:08]} Ke7 {[%emt 0:00:22]} 37. h4 {[%emt 0:00:02]} gxh4+ {[%emt 0:00:29]} 38. Kxh4 {[%emt 0:00:01]} Kf6 {[%emt 0:02:10]} 39. Kg3 {[%emt 0:00:01]} Ke5 {[%emt 0:01:49]} 40. Rd2 {[%emt 0:00:00]} Bd5 {[%emt 0:00:47]} 41. Rc2 {[%emt 0:00:27]} Bc6 {[%emt 0:00:01]} 42. Rd2 {[%emt 0:00:15]} Bd5 {[%emt 0:00:15]} 43. Rc2 {[%emt 0:00:02]} 1/2-1/2

[Event "Gibraltar Junior Intl U16 2019"]
[Site "Caleta"]
[Date "2019.08.17"]
[Round "3.6"]
[White "Revaliente Montoya, Ciro"]
[Black "Volovich, Julia"]
[Result "1-0"]
[ECO "C03"]
[WhiteElo "2006"]
[BlackElo "1726"]
[Annotator "NA"]
[PlyCount "47"]
[EventDate "2019.08.16"]
[EventType "swiss"]
[EventCountry "GGB"]
[SourceTitle "playchess.com"]
[Source "ChessBase"]
[SourceQuality "1"]
[TimeControl "6600+10"]

1. e4 {[%emt 0:00:00]} e6 {[%emt 0:00:00]} 2. d4 {[%emt 0:00:00]} d5 {[%emt 0:00:00]} 3. Nd2 {[%emt 0:00:00]} Be7 {[%emt 0:00:01]} 4. e5 {[%emt 0:00:09]} c5 {[%emt 0:00:09]} 5. c3 {[%emt 0:00:07]} Nc6 {[%emt 0:00:31]} 6. Bd3 {[%emt 0:01:53]} cxd4 {[%emt 0:05:40]} 7. cxd4 {[%emt 0:00:08]} Bb4 {[%emt 0:00:11]} 8. a3 {[%emt 0:05:54]} Ba5 {[%emt 0:00:57]} 9. b4 {[%emt 0:02:55]} Bb6 {[%emt 0:02:12]} 10. Nb3 {[%emt 0:00:59]} Nge7 {[%emt 0:18:42]} 11. Qg4 {[%emt 0:01:46]} Ng6 {[%emt 0:08:04]} 12. Nf3 {[%emt 0:05:14]} a6 {[%emt 0:09:28]} (12... a5 $142) 13. h4 {[%emt 0:00:41]} h5 $18 {[%emt 0:02:04]} 14. Qg3 {[%emt 0:00:30]} Qc7 {[%emt 0:04:41]} 15. Bxg6 {[%emt 0:03:30]} fxg6 {[%emt 0:06:12]} 16. Qxg6+ {[%emt 0:00:25]} Kf8 {[%emt 0:02:21]} 17. Ng5 {[%emt 0:18:42]} Nxd4 {[%emt 0:07:03]} 18. Nxd4 {[%emt 0:00:59]} Bxd4 {[%emt 0:00:27]} 19. Rh3 {[%emt 0:00:18]} Bxe5 {[%emt 0:06:21]} 20. Rf3+ {[%emt 0:00:14]} Bf6 {[%emt 0:01:04]} 21. Rxf6+ {[%emt 0:00:10]} gxf6 {[%emt 0:00:23]} 22. Qxf6+ {[%emt 0:00:01]} Kg8 {[%emt 0:01:03]} 23. Bb2 {[%emt 0:00:08]} Rh7 {[%emt 0:12:05]} 24. Qg6+ {[%emt 0:00:16]} 1-0

[Event "Gibraltar Junior Intl U16 2019"]
[Site "Caleta"]
[Date "2019.08.17"]
[Round "3.7"]
[White "Usharovsky, Ron"]
[Black "Tadevosyan, Aspet"]
[Result "1/2-1/2"]
[ECO "B07"]
[WhiteElo "1670"]
[BlackElo "2038"]
[Annotator "NA"]
[PlyCount "169"]
[EventDate "2019.08.16"]
[EventType "swiss"]
[EventCountry "GGB"]
[SourceTitle "playchess.com"]
[Source "ChessBase"]
[SourceQuality "1"]
[TimeControl "6600+10"]

1. e4 {[%emt 0:00:00]} d6 {[%emt 0:00:00]} 2. d4 {[%emt 0:00:02]} Nf6 {[%emt 0:00:00]} 3. Nc3 {[%emt 0:00:14]} g6 {[%emt 0:00:06]} 4. Bd3 {[%emt 0:00:51]} Bg7 {[%emt 0:00:27]} 5. Nge2 {[%emt 0:00:18]} O-O {[%emt 0:01:04]} 6. Be3 {[%emt 0:00:45] B07: Pirc Defence: Miscellaneous Systems} Ng4 {[%emt 0:01:52]} 7. Qd2 {[%emt 0:01:22]} Nxe3 {[%emt 0:01:01]} 8. Qxe3 {[%emt 0:00:59]} Nc6 {[%emt 0:03:01]} 9. O-O-O {[%emt 0:02:23]} e5 {[%emt 0:00:47]} 10. d5 {[%emt 0:08:17]} Nd4 {[%emt 0:01:12]} 11. Nb5 $146 {[%emt 0:01:35]} ({Predecessor:} 11. f3 a6 12. g4 b5 13. Rdg1 b4 {1-0 (45) Kutschke,J (1977)-Theilig,R (1622) Berlin 2017}) 11... f5 {[%emt 0:11:03]} 12. Nbxd4 {[%emt 0:09:12]} exd4 {[%emt 0:01:01]} 13. Qg3 {[%emt 0:03:50]} f4 {[%emt 0:23:39]} 14. Qf3 {[%emt 0:00:45]} g5 {[%emt 0:00:18]} (14... Qh4 $15 15. h3 Qf6) 15. Qh5 {[%emt 0:10:46]} h6 {[%emt 0:10:13]} 16. h4 {[%emt 0:05:54]} g4 {[%emt 0:04:03]} 17. g3 {[%emt 0:02:01]} fxg3 {[%emt 0:03:34]} 18. fxg3 {[%emt 0:02:02]} Qe8 {[%emt 0:01:19]} 19. Qxe8 {[%emt 0:03:25]} Rxe8 {[%emt 0:00:03]} 20. Rhf1 {[%emt 0:02:21]} Bd7 {[%emt 0:01:18]} 21. Nf4 {[%emt 0:09:19]} Be5 {[%emt 0:01:39]} 22. Rf2 {[%emt 0:01:46]} Rf8 {[%emt 0:02:43]} 23. Rdf1 {[%emt 0:00:46]} Rae8 {[%emt 0:02:31]} 24. Bc4 {[%emt 0:11:16]} a5 $11 {[%emt 0:05:21]} 25. Be2 {[%emt 0:14:37]} Kh7 {[%emt 0:04:33]} 26. Kd2 {[%emt 0:03:03]} Kg8 {[%emt 0:02:46]} 27. Kc1 {[%emt 0:01:01]} a4 {[%emt 0:03:37]} 28. a3 {[%emt 0:00:33]} Kh7 {[%emt 0:00:28]} 29. h5 {[%emt 0:01:20]} Kg7 {[%emt 0:03:08]} 30. Kd2 {[%emt 0:01:21]} Bf6 {[%emt 0:04:51]} 31. Bd3 {[%emt 0:01:39]} Bg5 {[%emt 0:00:35]} 32. Kd1 {[%emt 0:00:29]} c5 {[%emt 0:01:40]} 33. Ne6+ {[%emt 0:02:54]} Bxe6 {[%emt 0:00:22]} 34. Rxf8 {[%emt 0:00:01]} Rxf8 {[%emt 0:00:34]} 35. Rxf8 {[%emt 0:00:05]} Kxf8 {[%emt 0:00:03]} 36. dxe6 {[%emt 0:00:05]} Ke7 {[%emt 0:00:26]} 37. Be2 {[%emt 0:01:33]} Kxe6 {[%emt 0:00:13]} 38. Bxg4+ {[%emt 0:00:03]} Ke5 {[%emt 0:00:06]} 39. Bc8 {[%emt 0:00:19]} b6 {[%emt 0:01:01]} 40. Bb7 {[%emt 0:03:38]} Be3 {[%emt 0:00:05]} 41. Ke2 {[%emt 0:00:19]} Bc1 {[%emt 0:00:06]} 42. b3 {[%emt 0:00:18]} Bxa3 {[%emt 0:00:49]} 43. bxa4 {[%emt 0:00:10]} Bc1 {[%emt 0:00:36]} 44. Kd3 {[%emt 0:00:16]} Be3 {[%emt 0:00:17]} 45. Bc8 {[%emt 0:00:20]} Bg5 {[%emt 0:00:43]} 46. Bd7 {[%emt 0:00:21]} d5 {[%emt 0:01:22]} 47. exd5 {[%emt 0:00:16]} Kxd5 {[%emt 0:00:02]} 48. Bb5 {[%emt 0:00:21]} Be3 {[%emt 0:00:19]} 49. g4 {[%emt 0:00:14]} Bg5 {[%emt 0:00:38]} 50. c4+ {[%emt 0:00:36]} Ke5 {[%emt 0:00:10]} 51. Bd7 {[%emt 0:00:10]} Kf4 {[%emt 0:00:09]} 52. Bf5 {[%emt 0:00:17]} Kf3 {[%emt 0:00:03]} 53. Bd7 {[%emt 0:00:19]} Kf2 {[%emt 0:00:04]} 54. Bf5 {[%emt 0:00:06]} Ke1 {[%emt 0:00:23]} 55. Be6 {[%emt 0:00:01]} Kd1 {[%emt 0:00:11]} 56. Bf5 {[%emt 0:00:06]} Kc1 {[%emt 0:00:10]} 57. Bd7 {[%emt 0:00:00]} Be3 {[%emt 0:00:09]} 58. Be6 {[%emt 0:00:05]} Kd1 {[%emt 0:00:06]} 59. Bf5 {[%emt 0:00:04]} Ke1 {[%emt 0:00:03]} 60. Be6 {[%emt 0:00:04]} Kf2 {[%emt 0:00:04]} 61. Bf5 {[%emt 0:00:03]} Kf3 {[%emt 0:00:06]} 62. Bd7 {[%emt 0:00:01]} Kf4 {[%emt 0:00:09]} 63. Bf5 {[%emt 0:00:02]} Ke5 {[%emt 0:00:15]} 64. Bd7 {[%emt 0:00:04]} Kf6 {[%emt 0:00:10]} 65. Bf5 {[%emt 0:00:02]} Ke7 {[%emt 0:00:04]} 66. Bc8 {[%emt 0:00:04]} Bg5 {[%emt 0:00:06]} 67. Bf5 {[%emt 0:00:14]} Kd6 {[%emt 0:00:02]} 68. Bc8 {[%emt 0:00:05]} Kc7 {[%emt 0:00:08]} 69. Bf5 {[%emt 0:00:01]} Kd8 {[%emt 0:06:29]} 70. Be6 {[%emt 0:00:02]} Ke7 {[%emt 0:00:03]} 71. Bf5 {[%emt 0:00:02]} Kd6 {[%emt 0:00:02]} 72. Bc8 {[%emt 0:00:02]} Bc1 {[%emt 0:00:09]} 73. Bf5 {[%emt 0:00:04]} Ke5 {[%emt 0:00:04]} 74. Bc8 {[%emt 0:00:02]} Bg5 {[%emt 0:00:07]} 75. Bf5 {[%emt 0:00:02]} Kf4 {[%emt 0:00:23]} 76. Bd7 {[%emt 0:00:01]} Ke5 {[%emt 0:00:54]} 77. Bf5 {[%emt 0:00:02]} Kd6 {[%emt 0:00:07]} 78. Bc8 {[%emt 0:00:02]} Kc6 {[%emt 0:00:16]} 79. Bf5 {[%emt 0:00:01]} Kb7 {[%emt 0:00:03]} 80. Be6 {[%emt 0:00:01]} Ka6 {[%emt 0:00:04]} 81. Bf5 {[%emt 0:00:03]} Ka5 {[%emt 0:00:03]} 82. Bd7 {[%emt 0:00:01]} Kb4 {[%emt 0:00:10]} 83. Be8 {[%emt 0:00:03]} Kb3 {[%emt 0:00:12]} 84. Bd7 {[%emt 0:00:01]} Kb4 {[%emt 0:00:15]} 85. Ke4 {[%emt 0:00:05]} 1/2-1/2